bitfinex/quotes_BTCUSD_20241124
["timestamp","ask_amount","ask_price","bid_price","bid_amount"]
[1732482184879,0.00090974,96718.0,96717.0,0.17770981]
[1732482185083,0.0008566,96718.0,96717.0,0.17770981]
[1732482185381,0.0008566,96718.0,96717.0,0.32770981]
[1732482185590,0.0008566,96718.0,96717.0,0.326676]
[1732482186232,0.0008566,96718.0,96717.0,0.36051212]
[1732482186673,0.4,96729.0,96717.0,0.36051212]
[1732482186674,0.4,96729.0,96727.0,0.072368]
[1732482187119,0.00403809,96728.0,96727.0,0.072368]
[1732482192080,0.00403809,96728.0,96727.0,0.095368]
[1732482193149,0.0008565,96728.0,96727.0,0.095368]
[1732482193559,0.00392827,96728.0,96727.0,0.095368]
[1732482193779,0.0008565,96728.0,96727.0,0.095368]
[1732482194631,0.0037926,96728.0,96727.0,0.09640172]
[1732482194848,0.0008565,96728.0,96727.0,0.09640172]
[1732482195310,0.0008565,96728.0,96727.0,0.095368]
[1732482196784,0.0008565,96728.0,96727.0,0.096368]
[1732482197240,0.0008565,96728.0,96727.0,0.09740173]
[1732482198415,0.0008565,96728.0,96727.0,0.13119635]
[1732482199829,0.0008565,96728.0,96727.0,0.28119635]
[1732482200043,0.0008565,96728.0,96727.0,0.28016262]
[1732482200263,0.0008565,96728.0,96727.0,0.38217689]
[1732482200488,0.0008565,96728.0,96727.0,0.28016262]
[1732482200824,0.3288565,96728.0,96727.0,0.223368]
[1732482201028,0.3288565,96728.0,96727.0,0.073368]
[1732482201245,0.13244867,96728.0,96727.0,0.073368]
[1732482201468,0.00444867,96728.0,96727.0,0.073368]
[1732482201681,0.00152889,96728.0,96727.0,0.073368]
[1732482201889,0.0494,96733.0,96732.0,0.072364]
[1732482202317,0.05270078,96733.0,96732.0,0.095364]
[1732482203425,0.05270078,96733.0,96732.0,0.096364]
[1732482206075,0.25270078,96733.0,96732.0,0.096364]
[1732482207853,0.25270078,96733.0,96732.0,0.095364]
[1732482208067,0.25270078,96733.0,96732.0,0.096364]
[1732482210524,0.25355718,96733.0,96732.0,0.096364]
[1732482212069,0.25317968,96733.0,96732.0,0.096364]
[1732482228856,0.45317968,96733.0,96732.0,0.096364]
[1732482229061,0.73717095,96733.0,96732.0,0.001]
[1732482229978,0.77135127,96733.0,96732.0,0.001]
[1732482230441,0.62958,96730.0,96729.0,0.023]
[1732482230695,0.62858,96730.0,96729.0,0.023]
[1732482230905,0.73335196,96730.0,96729.0,0.023]
[1732482231141,0.628581,96729.0,96728.0,0.0017128]
[1732482231443,0.73059527,96729.0,96728.0,0.0017128]
[1732482231843,0.72959527,96729.0,96728.0,0.0017128]
[1732482232320,0.73157042,96729.0,96728.0,0.0017128]
[1732482233441,0.73157042,96729.0,96728.0,0.0027128]
[1732482233656,0.73157042,96729.0,96728.0,0.0017128]
[1732482234085,0.73157042,96729.0,96728.0,0.0027128]
[1732482236116,0.73257042,96729.0,96728.0,0.0027128]
[1732482236327,0.73257042,96729.0,96728.0,0.0017128]
[1732482236765,0.73257042,96729.0,96728.0,0.0027128]
[1732482236985,0.73157042,96729.0,96728.0,0.0027128]
[1732482237513,0.73157042,96729.0,96728.0,0.0017128]
[1732482244193,0.73184212,96729.0,96728.0,0.0017128]
[1732482245578,0.73269852,96729.0,96728.0,0.0017128]
[1732482250300,0.93269852,96729.0,96728.0,0.0017128]
[1732482250539,1.28269852,96729.0,96728.0,0.0017128]
[1732482250982,1.28369852,96729.0,96728.0,0.0017128]
[1732482251899,1.28269852,96729.0,96728.0,0.0017128]
[1732482252560,1.28369852,96729.0,96728.0,0.0017128]
[1732482252768,1.28369852,96729.0,96728.0,0.0027128]
[1732482252980,1.28269852,96729.0,96728.0,0.0027128]
[1732482253219,1.28369852,96729.0,96728.0,0.0027128]
[1732482254109,1.08269852,96729.0,96728.0,0.0027128]
[1732482254331,1.28269852,96729.0,96728.0,0.0027128]
[1732482257051,1.28469852,96729.0,96728.0,0.0027128]
[1732482258153,1.49316458,96729.0,96728.0,0.0027128]
[1732482259921,1.51616458,96729.0,96728.0,8e-07]
[1732482260166,1.179888,96723.0,96722.0,6e-07]
[1732482260381,1.48417357,96723.0,96722.0,6e-07]
[1732482260608,1.4863963,96723.0,96722.0,6e-07]
[1732482261943,1.51994675,96723.0,96722.0,6e-07]
[1732482264160,2.06524675,96723.0,96722.0,6e-07]
[1732482265509,2.1691148,96723.0,96722.0,6e-07]
[1732482265720,1.178902,96709.0,96708.0,0.0017132]
[1732482265958,1.28091627,96709.0,96708.0,0.0017132]
[1732482266174,1.59301862,96709.0,96708.0,0.0017132]
[1732482266398,1.77764007,96709.0,96708.0,0.0017132]
[1732482267258,1.77864007,96709.0,96708.0,0.0017132]
[1732482267484,1.77764007,96709.0,96708.0,0.0017132]
[1732482268157,1.77864007,96709.0,96708.0,0.0017132]
[1732482268415,1.81218138,96709.0,96708.0,0.0017132]
[1732482270792,1.81118138,96709.0,96708.0,0.0017132]
[1732482271040,1.81018138,96709.0,96708.0,0.0017132]
[1732482271277,1.72988138,96709.0,96708.0,0.0017132]
[1732482271762,1.52988138,96709.0,96708.0,0.0017132]
[1732482272227,1.72988138,96709.0,96708.0,0.0017132]
[1732482273293,1.73088138,96709.0,96708.0,0.00110326]
[1732482273740,1.72988138,96709.0,96708.0,0.00110326]
[1732482274164,1.73015465,96709.0,96708.0,0.00110326]
[1732482275495,1.73115465,96709.0,96708.0,0.00110326]
[1732482277148,1.73015465,96709.0,96708.0,0.00110326]
[1732482278139,1.53015465,96709.0,96708.0,0.00110326]
[1732482278824,1.53115465,96709.0,96708.0,0.00110326]
[1732482279045,1.53015465,96709.0,96708.0,0.00110326]
[1732482280681,1.53115465,96709.0,96708.0,0.00110326]
[1732482281346,1.53012061,96709.0,96708.0,0.00110326]
[1732482285268,1.52912061,96709.0,96708.0,0.00110326]
[1732482285696,1.53012061,96709.0,96708.0,0.00110326]
[1732482286445,1.34549916,96709.0,96708.0,0.00110326]
[1732482288109,1.42789916,96709.0,96708.0,0.00110326]
[1732482288292,1.42889916,96709.0,96708.0,0.00110326]
[1732482288991,1.58688465,96709.0,96708.0,0.00110326]
[1732482289650,1.58588465,96709.0,96708.0,0.00110326]
[1732482290516,1.58688465,96709.0,96708.0,0.00110326]
[1732482292104,1.58588465,96709.0,96708.0,0.00110326]
[1732482292350,1.58688465,96709.0,96708.0,0.00110326]
[1732482292569,1.58588465,96709.0,96708.0,0.00110326]
[1732482293457,1.67850971,96709.0,96708.0,0.00110326]
[1732482294377,1.58588465,96709.0,96708.0,0.00110326]
[1732482294833,1.72482225,96709.0,96708.0,0.00110326]
[1732482295055,1.58588465,96709.0,96708.0,0.00110326]
[1732482295276,2.11336578,96709.0,96708.0,0.00110326]
[1732482295724,0.2,96671.0,96670.0,0.0794]
[1732482295968,0.71562727,96671.0,96670.0,0.0794]
[1732482296226,0.71782575,96671.0,96670.0,0.0794]
[1732482296572,0.91579171,96671.0,96670.0,0.0794]
[1732482298755,0.91579171,96671.0,96670.0,0.1248]
[1732482300811,0.81234871,96671.0,96670.0,0.1248]
[1732482301027,0.91579171,96671.0,96670.0,0.1248]
[1732482303155,0.91579171,96671.0,96670.0,0.0794]
[1732482303606,0.91579171,96671.0,96670.0,0.0802566]
[1732482303840,0.91579171,96671.0,96670.0,0.0008566]
[1732482304533,0.91573464,96671.0,96670.0,0.0008566]
[1732482306133,0.96093464,96671.0,96670.0,0.0008566]
[1732482306345,1.16093464,96671.0,96670.0,0.0008566]
[1732482311679,1.40973464,96671.0,96670.0,0.0008566]
[1732482311946,1.50245987,96671.0,96670.0,0.0008566]
[1732482312170,1.40973464,96671.0,96670.0,0.0008566]
[1732482312403,1.41173464,96671.0,96670.0,0.0008566]
[1732482312618,1.50434972,96671.0,96670.0,0.0008566]
[1732482313263,1.41173464,96671.0,96670.0,0.0008566]
[1732482318335,0.83112096,96660.0,96659.0,0.0008568]
[1732482318561,1.41630523,96660.0,96659.0,0.0008568]
[1732482318796,1.41630523,96660.0,96659.0,8e-07]
[1732482318797,1.41758312,96660.0,96659.0,8e-07]
[1732482319030,1.41831971,96660.0,96659.0,8e-07]
[1732482319263,1.01731971,96660.0,96659.0,8e-07]
[1732482319539,1.39331971,96660.0,96659.0,8e-07]
[1732482320001,1.42769412,96660.0,96659.0,8e-07]
[1732482321852,1.42869412,96660.0,96659.0,8e-07]
[1732482322149,1.42769412,96660.0,96659.0,8e-07]
[1732482323463,1.42869412,96660.0,96659.0,8e-07]
[1732482323686,1.42769412,96660.0,96659.0,8e-07]
[1732482325640,1.42869412,96660.0,96659.0,8e-07]
[1732482327230,1.42969412,96660.0,96659.0,8e-07]
[1732482330381,1.42869412,96660.0,96659.0,8e-07]
[1732482337412,1.42969412,96660.0,96659.0,8e-07]
[1732482337634,0.4,96651.0,96650.0,0.03]
[1732482337850,0.85330798,96651.0,96650.0,0.03]
[1732482346221,0.8741363,96651.0,96650.0,0.03]
[1732482350240,0.96663085,96651.0,96650.0,0.03]
[1732482350907,0.96663085,96651.0,96650.0,0.0308566]
[1732482351122,0.8741363,96651.0,96650.0,0.0308566]
[1732482351349,0.96663085,96651.0,96650.0,0.0308566]
[1732482351554,0.8741363,96651.0,96650.0,0.0308566]
[1732482352001,0.96663085,96651.0,96650.0,0.0308566]
[1732482352248,0.96689446,96651.0,96650.0,0.0308566]
[1732482352476,0.8741363,96651.0,96650.0,0.0308566]
[1732482352753,0.96689439,96651.0,96650.0,0.0308566]
[1732482352992,0.9668946,96651.0,96650.0,0.0308566]
[1732482353201,0.8741363,96651.0,96650.0,0.0308566]
[1732482353422,0.96690523,96651.0,96650.0,0.0308566]
[1732482353643,0.8741363,96651.0,96650.0,0.0308566]
[1732482354800,1.01287812,96651.0,96650.0,0.0308566]
[1732482355025,0.8741363,96651.0,96650.0,0.0308566]
[1732482355464,1.62882063,96651.0,96650.0,0.0308566]
[1732482356157,1.44383153,96651.0,96650.0,0.0308566]
[1732482357048,1.44483153,96651.0,96650.0,0.0308566]
[1732482357255,1.6760679,96651.0,96650.0,0.0308566]
[1732482358121,1.6740679,96651.0,96650.0,0.0308566]
[1732482358343,1.44283153,96651.0,96650.0,0.0308566]
[1732482358560,1.6749703,96651.0,96650.0,0.0308566]
[1732482359239,1.44283153,96651.0,96650.0,0.0308566]
[1732482360636,1.46606549,96651.0,96650.0,0.0308566]
[1732482363014,1.69833691,96651.0,96650.0,0.00145205]
[1732482363266,1.69833691,96651.0,96625.0,0.0017128]
[1732482363267,0.70145096,96632.0,96625.0,0.0017128]
[1732482363498,0.96775454,96632.0,96625.0,0.0017128]
[1732482363712,1.14058313,96632.0,96625.0,0.0017128]
[1732482363935,1.48350011,96632.0,96625.0,0.0017128]
[1732482364188,1.66929217,96632.0,96625.0,0.0017128]
[1732482364413,1.48350011,96632.0,96625.0,0.0017128]
[1732482364640,1.66929217,96632.0,96625.0,0.0017128]
[1732482365576,1.48150011,96632.0,96625.0,0.0017128]
[1732482365808,1.48350011,96632.0,96625.0,0.0017128]
[1732482366249,1.48150011,96632.0,96625.0,0.0017128]
[1732482366477,1.13858313,96632.0,96625.0,0.0017128]
[1732482366720,1.51453743,96632.0,96625.0,0.0017128]
[1732482367174,1.78893743,96632.0,96625.0,0.0017128]
[1732482367400,1.79093743,96632.0,96625.0,0.0017128]
[1732482367630,2.02307773,96632.0,96625.0,0.0017128]
[1732482367902,2.02107773,96632.0,96625.0,0.0017128]
[1732482368121,1.79093743,96632.0,96625.0,0.0017128]
[1732482368356,2.02302538,96632.0,96625.0,0.0017128]
[1732482368594,1.79093743,96632.0,96625.0,0.0017128]
[1732482369273,2.33623743,96632.0,96625.0,0.0017128]
[1732482369484,2.56822619,96632.0,96625.0,0.0017128]
[1732482369727,0.70345696,96626.0,96625.0,0.0017128]
[1732482369948,1.94118688,96626.0,96625.0,0.0017128]
[1732482370190,1.75753335,96626.0,96625.0,0.0017128]
[1732482370403,1.98945521,96626.0,96625.0,0.0017128]
[1732482370610,1.75753335,96626.0,96625.0,0.0017128]
[1732482371490,1.98938556,96626.0,96625.0,0.0017128]
[1732482372389,0.50151296,96574.0,96573.0,0.0502566]
[1732482372612,0.2,96574.0,96573.0,0.0502566]
[1732482372831,0.20089832,96574.0,96573.0,0.1269566]
[1732482373300,0.30444532,96574.0,96573.0,0.1269566]
[1732482373739,0.20089832,96574.0,96573.0,0.1269566]
[1732482373953,0.30444532,96574.0,96573.0,0.1269566]
[1732482374861,0.40645959,96574.0,96573.0,0.1269566]
[1732482379167,0.40746154,96574.0,96573.0,0.1269566]
[1732482379457,0.30391454,96574.0,96573.0,0.1269566]
[1732482379711,0.40746154,96574.0,96573.0,0.1269566]
[1732482379919,0.30391454,96574.0,96573.0,0.1269566]
[1732482380367,0.30391454,96574.0,96573.0,0.1994406]
[1732482382614,0.00190027,96574.0,96573.0,0.1994406]
[1732482383953,0.20190027,96574.0,96573.0,0.1269566]
[1732482384185,0.30544727,96574.0,96573.0,0.1269566]
[1732482384450,0.20190027,96574.0,96573.0,0.1269566]
[1732482386842,0.30544727,96574.0,96573.0,0.1269566]
[1732482387313,0.40746154,96574.0,96573.0,0.0775566]
[1732482388235,0.30391454,96574.0,96573.0,0.0775566]
[1732482388673,0.40746154,96574.0,96573.0,0.0775566]
[1732482388908,0.30391454,96574.0,96573.0,0.0775566]
[1732482391217,0.40746154,96574.0,96573.0,0.0775566]
[1732482392611,0.40746154,96574.0,96573.0,0.0008566]
[1732482393508,0.45476154,96574.0,96573.0,0.0008566]
[1732482393960,0.6869952,96574.0,96573.0,0.0008566]
[1732482396700,0.8889952,96574.0,96573.0,0.0008566]
[1732482399018,0.9650952,96574.0,96573.0,0.0008566]
[1732482399482,1.1380952,96574.0,96573.0,0.0008566]
[1732482400217,1.9935652,96574.0,96573.0,6e-07]
[1732482401316,1.19793396,96554.0,96553.0,6e-07]
[1732482401552,0.99795496,96535.0,96534.0,0.0008567]
[1732482401746,1.07696923,96535.0,96534.0,0.0008567]
[1732482402441,1.07896923,96535.0,96534.0,0.0008567]
[1732482403341,1.11180042,96535.0,96534.0,0.0008567]
[1732482405148,1.11246132,96535.0,96534.0,0.0008567]
[1732482407121,1.1333137,96535.0,96534.0,0.0008567]
[1732482409107,1.13436858,96535.0,96534.0,0.0008567]
[1732482410419,1.13236858,96535.0,96534.0,0.0008567]
[1732482411541,1.13436858,96535.0,96534.0,0.0008567]
[1732482413659,1.13236858,96535.0,96534.0,0.0008567]
[1732482413900,1.13436858,96535.0,96534.0,0.0008567]
[1732482417477,1.13445236,96535.0,96534.0,0.0008567]
[1732482417737,0.78819998,96535.0,96534.0,0.0008567]
[1732482417976,0.75536879,96535.0,96534.0,0.0008567]
[1732482418202,0.60536879,96535.0,96534.0,0.0008567]
[1732482432419,0.65531879,96535.0,96534.0,0.0008567]
[1732482434632,0.65531879,96535.0,96534.0,0.0733697]
[1732482434633,0.35376383,96535.0,96534.0,0.0733697]
[1732482436215,0.25174956,96535.0,96534.0,0.1971697]
[1732482441477,0.35376383,96535.0,96534.0,0.0008567]
[1732482442364,0.35376383,96535.0,96534.0,0.0733697]
[1732482443261,0.35364636,96535.0,96534.0,0.0733697]
[1732482445613,0.35364636,96535.0,96534.0,0.0008567]
[1732482446252,0.32364636,96535.0,96534.0,0.0008567]
[1732482446461,0.32526071,96535.0,96534.0,0.0008567]
[1732482446898,0.32526071,96535.0,96534.0,0.0733697]
[1732482448414,0.32526071,96535.0,96534.0,0.0008567]
[1732482448632,0.32526071,96535.0,96534.0,0.0733697]
[1732482450625,0.32353187,96535.0,96534.0,0.0733697]
[1732482450856,0.32364636,96535.0,96534.0,0.0733697]
[1732482451102,0.32525531,96535.0,96534.0,0.0733697]
[1732482451783,0.32525531,96535.0,96534.0,0.1210697]
[1732482451784,0.22324104,96535.0,96534.0,0.1210697]
[1732482454532,0.22324104,96535.0,96534.0,0.2041697]
[1732482460194,0.22324104,96535.0,96534.0,0.1564697]
[1732482461281,0.05167344,96535.0,96534.0,0.2041697]
[1732482463227,0.05167344,96535.0,96534.0,0.23785383]
[1732482463781,0.05155895,96535.0,96534.0,0.23785383]
[1732482468119,0.05327435,96535.0,96534.0,0.23785383]
[1732482475203,0.05327435,96535.0,96534.0,0.19015383]
[1732482475819,0.0516654,96535.0,96534.0,0.19015383]
[1732482476028,0.0516654,96535.0,96534.0,0.42218087]
[1732482476233,0.0516654,96535.0,96534.0,0.19015383]
[1732482479263,0.0516654,96535.0,96534.0,0.19118959]
[1732482479498,0.0516654,96535.0,96534.0,0.69235607]
[1732482479717,0.0516654,96535.0,96534.0,0.51490214]
[1732482479956,4e-07,96535.0,96534.0,0.54533454]
[1732482486300,4e-07,96535.0,96534.0,0.95607271]
[1732482486513,4e-07,96535.0,96534.0,0.54533454]
[1732482487218,4e-07,96535.0,96534.0,0.95606239]
[1732482488722,4e-07,96535.0,96534.0,0.54533454]
[1732482489129,4e-07,96535.0,96534.0,0.95593137]
[1732482489811,4e-07,96535.0,96534.0,0.54533454]
[1732482490026,0.0017152,96553.0,96552.0,0.00203404]
[1732482490249,0.0017152,96553.0,96552.0,0.22453304]
[1732482491027,0.0017152,96553.0,96552.0,0.45623251]
[1732482491256,0.0017152,96553.0,96552.0,0.22453304]
[1732482491479,0.0017152,96553.0,96552.0,0.07453304]
[1732482491706,0.0017152,96553.0,96552.0,0.22453304]
[1732482491959,0.0017152,96553.0,96552.0,0.22653304]
[1732482492882,0.0017152,96553.0,96552.0,0.07653304]
[1732482493789,0.0017152,96553.0,96552.0,0.07453304]
[1732482494665,0.0017152,96553.0,96552.0,0.25793806]
[1732482495776,0.0017152,96553.0,96552.0,0.28093806]
[1732482501596,0.0017152,96553.0,96552.0,0.38963806]
[1732482501812,0.0017152,96553.0,96552.0,0.28093806]
[1732482511480,0.0017152,96553.0,96552.0,0.51264038]
[1732482513047,0.0017152,96553.0,96552.0,0.28093806]
[1732482521100,0.0017152,96553.0,96552.0,0.55898085]
[1732482522155,0.0017152,96553.0,96552.0,0.28093806]
[1732482523957,0.0017152,96553.0,96552.0,0.27890402]
[1732482524172,0.0017152,96553.0,96552.0,0.28093806]
[1732482527948,0.0017152,96553.0,96552.0,0.69299205]
[1732482528164,0.0017152,96553.0,96552.0,0.28093806]
[1732482531266,0.0017152,96553.0,96552.0,0.69302065]
[1732482531469,0.00359844,96553.0,96552.0,0.69302065]
[1732482531678,0.0017152,96553.0,96552.0,0.69302065]
[1732482532469,0.0017152,96553.0,96552.0,0.27890402]
[1732482532897,0.0017152,96553.0,96552.0,0.28093806]
[1732482532898,0.00359844,96553.0,96552.0,0.28093806]
[1732482533112,0.0017152,96553.0,96552.0,0.28093806]
[1732482533340,0.00359844,96553.0,96552.0,0.28093806]
[1732482540716,0.00359844,96553.0,96552.0,0.27890402]
[1732482542251,0.00359844,96553.0,96552.0,0.69098506]
[1732482542699,0.0017152,96553.0,96552.0,0.27890402]
[1732482542961,0.00359957,96553.0,96552.0,0.27890402]
[1732482543179,0.0017152,96553.0,96552.0,0.27890402]
[1732482543417,0.00359957,96553.0,96552.0,0.27890402]
[1732482543600,0.0017152,96553.0,96552.0,0.27890402]
[1732482543868,0.00359957,96553.0,96552.0,0.27890402]
[1732482544087,0.0017152,96553.0,96552.0,0.27890402]
[1732482544306,0.00359957,96553.0,96552.0,0.27890402]
[1732482544527,0.0017152,96553.0,96552.0,0.27890402]
[1732482544973,0.00359957,96553.0,96552.0,0.27890402]
[1732482545194,0.0017152,96553.0,96552.0,0.27890402]
[1732482545422,0.00359957,96553.0,96552.0,0.69098167]
[1732482545663,0.0017152,96553.0,96552.0,0.69098167]
[1732482546323,0.0017152,96553.0,96552.0,0.69070537]
[1732482547655,0.0017152,96553.0,96549.0,0.072502]
[1732482547656,0.0499,96551.0,96549.0,0.27910923]
[1732482547879,0.0499,96551.0,96542.0,0.072507]
[1732482547880,0.1319,96550.0,96545.0,0.27912277]
[1732482548110,0.1319,96550.0,96546.0,0.072503]
[1732482548336,0.082,96545.0,96540.0,0.05664074]
[1732482548551,0.1715676,96546.0,96536.0,0.27912277]
[1732482548552,0.1715676,96542.0,96536.0,0.27912277]
[1732482548788,0.1715676,96542.0,96538.0,0.072509]
[1732482549009,0.1715676,96542.0,96535.0,0.05749724]
[1732482549010,0.1319,96541.0,96540.0,0.23245882]
[1732482549232,0.1319,96541.0,96538.0,0.3049683]
[1732482549233,0.082,96541.0,96538.0,0.3049683]
[1732482549463,0.082,96539.0,96538.0,0.072509]
[1732482549696,0.0499,96538.0,96537.0,0.2324593]
[1732482549955,0.2233459,96538.0,96537.0,0.2324593]
[1732482550204,0.2233459,96538.0,96535.0,0.0008565]
[1732482550423,0.1715676,96536.0,96535.0,0.0008565]
[1732482550647,0.4070556,96536.0,96535.0,0.0008565]
[1732482551114,0.40890474,96536.0,96535.0,0.0008565]
[1732482553145,0.30531674,96536.0,96535.0,0.0008565]
[1732482553627,0.40890474,96536.0,96535.0,0.0008565]
[1732482555879,0.40890474,96536.0,96535.0,0.5008565]
[1732482559862,0.27700474,96536.0,96535.0,0.5008565]
[1732482570390,0.57698497,96536.0,96535.0,0.5008565]
[1732482579404,0.37901901,96536.0,96535.0,0.5008565]
[1732482579623,0.57698497,96536.0,96535.0,0.5008565]
[1732482580297,0.5971528,96536.0,96535.0,0.5008565]
[1732482590177,0.7971528,96536.0,96535.0,0.5008565]
[1732482590394,0.7991528,96536.0,96535.0,0.5008565]
[1732482590863,0.7971528,96536.0,96535.0,0.5008565]
[1732482596184,0.7991528,96536.0,96535.0,0.5008565]
[1732482596501,0.7971528,96536.0,96535.0,0.5008565]
[1732482597113,0.7991528,96536.0,96535.0,0.5008565]
[1732482597737,0.7971528,96536.0,96535.0,0.5008565]
[1732482600070,0.7991528,96536.0,96535.0,0.5008565]
[1732482601369,0.7971528,96536.0,96535.0,0.5008565]
[1732482602282,0.9263528,96536.0,96535.0,0.5008565]
[1732482602718,0.9243528,96536.0,96535.0,0.5008565]
[1732482605052,0.9263528,96536.0,96535.0,0.5008565]
[1732482608677,0.9263528,96536.0,96535.0,0.4958565]
[1732482608678,0.9243528,96536.0,96535.0,0.4958565]
[1732482610723,0.90418497,96536.0,96535.0,0.4958565]
[1732482611665,0.70418497,96536.0,96535.0,0.4958565]
[1732482611921,0.62308497,96536.0,96535.0,0.4958565]
[1732482612506,0.70188497,96536.0,96535.0,0.4958565]
[1732482613093,0.90188497,96536.0,96535.0,0.4958565]
[1732482613713,0.90388497,96536.0,96535.0,0.4958565]
[1732482620130,0.90388497,96536.0,96535.0,0.4967128]
[1732482627253,0.99683632,96536.0,96535.0,0.4967128]
[1732482628342,0.99683632,96536.0,96535.0,0.49644944]
[1732482629283,0.99483632,96536.0,96535.0,0.49644944]
[1732482629944,1.00479632,96536.0,96535.0,0.49644944]
[1732482630831,1.00679632,96536.0,96535.0,0.49644944]
[1732482631260,1.00482976,96536.0,96535.0,0.49644944]
[1732482631711,1.00654276,96536.0,96535.0,0.49644944]
[1732482632282,1.00655211,96536.0,96535.0,0.49644944]
[1732482633096,0.91355797,96536.0,96535.0,0.49644944]
[1732482633654,0.91555797,96536.0,96535.0,0.49644944]
[1732482635170,1.05503516,96536.0,96535.0,0.49644944]
[1732482636299,1.05512546,96536.0,96535.0,0.49644944]
[1732482638042,1.05312546,96536.0,96535.0,0.49644944]
[1732482638870,1.05512546,96536.0,96535.0,0.49644944]
[1732482640829,0.91555797,96536.0,96535.0,0.49644944]
[1732482641037,1.05512743,96536.0,96535.0,0.49644944]
[1732482641317,1.05312743,96536.0,96535.0,0.49644944]
[1732482642813,1.05512743,96536.0,96535.0,0.49644944]
[1732482643022,1.05312743,96536.0,96535.0,0.49644944]
[1732482650203,0.91355797,96536.0,96535.0,0.49644944]
[1732482654392,1.2570414,96536.0,96535.0,0.49644944]
[1732482656648,1.25704553,96536.0,96535.0,0.49644944]
[1732482656870,1.25519639,96536.0,96535.0,0.49644944]
[1732482658223,1.44129758,96536.0,96535.0,0.49644944]
[1732482659340,1.25519639,96536.0,96535.0,0.49644944]
[1732482663549,1.48982288,96536.0,96535.0,0.49644944]
[1732482665516,1.25719639,96536.0,96535.0,0.49644944]
[1732482666426,1.48992191,96536.0,96535.0,0.49644944]
[1732482672638,1.25719639,96536.0,96535.0,0.49644944]
[1732482673976,1.60719639,96536.0,96535.0,0.39285944]
[1732482674214,1.66251692,96536.0,96535.0,0.39285944]
[1732482674448,1.66251692,96536.0,96535.0,0.28926944]
[1732482674689,1.66255862,96536.0,96535.0,0.28926944]
[1732482675403,1.66255862,96536.0,96535.0,0.20639744]
[1732482675629,1.97332862,96536.0,96535.0,0.18567944]
[1732482676299,1.94100809,96536.0,96535.0,0.18567944]
[1732482679701,1.94055002,96536.0,96535.0,0.18567944]
[1732482682027,2.48585002,96536.0,96535.0,0.18567944]
[1732482682520,1.9322306,96536.0,96535.0,0.18567944]
[1732482682766,1.79287883,96536.0,96535.0,0.18567944]
[1732482682984,1.27131123,96536.0,96535.0,0.18567944]
[1732482683206,0.79399083,96536.0,96535.0,0.18567944]
[1732482683906,0.59602487,96536.0,96535.0,0.26855044]
[1732482684149,0.59602487,96536.0,96535.0,0.41637117]
[1732482684379,0.59602487,96536.0,96535.0,0.43891396]
[1732482684601,0.42445727,96536.0,96535.0,0.43891396]
[1732482684845,0.4940106,96536.0,96535.0,0.43891396]
[1732482685061,0.19796596,96549.0,96548.0,0.1272]
[1732482685288,0.29998023,96549.0,96548.0,0.22943505]
[1732482685502,0.10201427,96549.0,96548.0,0.22943505]
[1732482685748,0.10201427,96549.0,96548.0,0.14657505]
[1732482686038,0.0017126,96552.0,96548.0,0.14657505]
[1732482686039,0.0017126,96552.0,96549.0,0.162159]
[1732482686268,0.0017126,96552.0,96551.0,0.165857]
[1732482686505,0.0017126,96552.0,96551.0,0.213057]
[1732482686715,0.0017152,96553.0,96552.0,0.10755946]
[1732482686945,0.0017152,96553.0,96552.0,0.20979051]
[1732482687401,0.0017152,96553.0,96552.0,0.165856]
[1732482688547,0.0017152,96553.0,96552.0,0.18523105]
[1732482689531,0.0017152,96553.0,96552.0,0.18857947]
[1732482689989,0.0017152,96553.0,96552.0,0.165856]
[1732482690205,0.0017152,96553.0,96552.0,0.18857947]
[1732482692029,0.0017152,96553.0,96552.0,0.165856]
[1732482692251,0.0017152,96553.0,96552.0,0.18857947]
[1732482693129,0.0017152,96553.0,96552.0,0.165856]
[1732482699296,0.0017152,96553.0,96552.0,0.155856]
[1732482700174,0.0017152,96553.0,96552.0,0.1732191]
[1732482700385,0.0017152,96553.0,96552.0,0.155856]
[1732482701258,0.0017152,96553.0,96552.0,0.1567123]
[1732482703317,0.10372947,96553.0,96552.0,0.0008563]
[1732482703784,0.10546174,96553.0,96552.0,0.0008563]
[1732482708428,0.10546174,96553.0,96552.0,0.0837123]
[1732482708708,0.10372947,96553.0,96552.0,0.0837123]
[1732482709178,0.10545784,96553.0,96552.0,0.0837123]
[1732482710451,0.10545784,96553.0,96552.0,0.09952765]
[1732482711137,0.00344357,96553.0,96552.0,0.0837123]
[1732482711381,0.00344357,96553.0,96552.0,0.09952765]
[1732482711666,0.0017152,96553.0,96552.0,0.09952765]
[1732482711904,0.0017152,96553.0,96552.0,0.23242765]
[1732482717531,0.0017152,96553.0,96552.0,0.2166123]
[1732482717791,0.0017152,96553.0,96552.0,0.0837123]
[1732482718301,0.10372947,96553.0,96552.0,0.0837123]
[1732482718735,0.10545784,96553.0,96552.0,0.0837123]
[1732482725984,0.10545784,96553.0,96552.0,0.0008563]
[1732482726429,0.33782784,96553.0,96552.0,0.0008563]
[1732482729349,0.33782784,96553.0,96552.0,0.00058]
[1732482730200,0.5357938,96553.0,96552.0,0.00058]
[1732482734685,0.33782784,96553.0,96552.0,0.00058]
[1732482734911,0.5357938,96553.0,96552.0,0.00058]
[1732482740529,0.56909011,96553.0,96552.0,0.00058]
[1732482741270,0.76909011,96553.0,96552.0,0.00058]
[1732482741747,0.77109011,96553.0,96552.0,0.00058]
[1732482741962,1.26392663,96553.0,96552.0,0.00058]
[1732482742175,1.06035688,96553.0,96552.0,0.00058]
[1732482743349,0.92109011,96553.0,96552.0,0.00058]
[1732482744267,1.01388797,96553.0,96552.0,0.00058]
[1732482745195,0.92109011,96553.0,96552.0,0.00058]
[1732482745602,0.91909011,96553.0,96552.0,0.00058]
[1732482745841,0.91736174,96553.0,96552.0,0.00058]
[1732482746499,1.22807174,96553.0,96552.0,0.00058]
[1732482746948,1.23007174,96553.0,96552.0,0.00058]
[1732482750021,1.22807174,96553.0,96552.0,0.00058]
[1732482750966,1.23007174,96553.0,96552.0,0.00058]
[1732482761498,1.22807174,96553.0,96552.0,0.00058]
[1732482761933,1.23007174,96553.0,96552.0,0.00058]
[1732482770758,1.32275988,96553.0,96552.0,0.00058]
[1732482771230,1.23007174,96553.0,96552.0,0.00058]
[1732482772356,1.36930287,96553.0,96552.0,0.00058]
[1732482772579,1.23007174,96553.0,96552.0,0.00058]
[1732482773091,1.36930286,96553.0,96552.0,0.00058]
[1732482773310,1.83669443,96553.0,96552.0,0.00058]
[1732482773529,1.60497407,96553.0,96552.0,0.00058]
[1732482775060,1.83708642,96553.0,96552.0,0.00058]
[1732482775292,1.83710941,96553.0,96552.0,0.00058]
[1732482775957,1.60497407,96553.0,96552.0,0.00058]
[1732482778077,1.62797407,96553.0,96552.0,0.00058]
[1732482779823,1.62830883,96553.0,96552.0,0.00058]
[1732482781601,1.60330883,96553.0,96552.0,0.00058]
[1732482781814,1.52040883,96553.0,96552.0,0.00058]